{"text_format":"3","workbook":"xlsx","n_sheets":3,"sheets":["COVER SHEET","TRANSACTION FEE","Price Declaration "],"not_rendered":{"images":4,"defined_names":26},"read":"whole","date_system":"1900"}

{"sheet":"COVER SHEET","index":0,"n_rows":45,"n_cols":10,"rows_kept":45,"merged":[[1,9,1,11],[13,0,13,12],[16,4,16,11],[18,4,18,11],[20,4,20,11],[23,0,23,12],[25,0,25,12],[26,0,26,12],[27,0,27,12],[28,0,28,12],[29,0,29,12],[30,0,30,12],[31,0,31,12],[32,0,32,12],[33,0,33,12],[34,0,34,12],[35,0,35,12],[36,0,36,12],[37,0,37,12],[38,0,38,12],[39,0,39,12],[40,0,40,12],[41,0,41,12],[42,0,42,12],[43,0,43,12],[44,0,44,12],[45,0,45,12],[46,0,46,12]]}
[]
[{"$nulls":9},"ANNEXURE A3"]
{"$rows_empty":11}
["PRICING SUBMISSION"]
[]
[]
["RFP NO:"]
[]
["RFP NAME:",{"$nulls":3},"THE PROVISION OF TRAVEL MANAGEMENT SERVICES FOR A PERIOD OF 36 MONTHS"]
[]
["BIDDER NAME",{"$nulls":3},"<NAME OF BIDDER TO BE FILLED IN HERE>"]
[]
[]
["PRICE INSTRUCTIONS"]
[]
["1.  STRUCTURE OF THE TENDER"]
["This spreadsheet for RFP/BID XXXXXX contains the financial response templates for the bid. The bid pricing submission instructions in this document must be read in conjunction with instructions or notes embedded in the various tabs of spreadsheet (Pricing Schedule)."]
[]
["2.  GENERAL INSTRUCTIONS FOR COMPLETING THE PRICING SCHEDULE TEMPLATES"]
["2.1  Tender submission format"]
["2.1.1 Bidders must submit  a paper copy and an electronic copy of the Pricing Schedule. In the event of a discrepancy, the\n         paper copy will prevail."]
["2.1.2 Bidders must sign all paper copies of their Pricing Schedule."]
["2.1.3 Bidders must complete and submit the template attached which is transactional fee model."]
["2.1.4 Bidders must reference RFP/BID main document section 15.2 for current travel volumes."]
["2.2  Input spreadsheets"]
["2.2.1 The Pricing Schedule templates are contained within the one (1) Excel Workbook"]
["2.2.2 Bidders must not  make any changes to the spreadsheets or change the formatting of the Pricing Schedule."]
["2.2.3 Cells are formatted to automatically indicate South African Rands, ordinary text fields and percentages (%) where \n         applicable."]
["2.2.4 Input cells FOR BIDDERS are highlighted in  GREEN. The Bidder must complete all the relevant input cells for the bid. \n        No other cells must be changed in any way whatsoever."]
["2.2.4 Input cells FOR THE TENDERING INSTITUTION are highlighted in  ORANGE. The Tendering Institution must complete all  \n        the relevant input cells for the bid. No other cells must be changed in any way whatsoever."]
[]
[]
["2.3  Currency and VAT"]
["2.3.1 All Bidders’ pricing must be quoted in South African Rands (ZAR)."]
["2.3.3 The Pricing Schedule template is designed such that VAT will be calculated on Bidders’ input pricing; therefore Bidders \n         must complete the templates with unit prices excluding VAT."]

{"sheet":"TRANSACTION FEE","index":1,"n_rows":34,"n_cols":6,"rows_kept":34,"merged":[[0,2,2,5],[3,2,3,5],[6,2,6,5],[7,2,7,5],[8,2,8,5],[10,3,10,4],[11,0,11,2],[11,3,11,5],[33,0,33,3],[33,4,33,5]]}
[null,null,"TEMPLATE: TRANSACTION FEE MODEL"]
[]
[]
[null,null,"OFF-SITE SERVICES"]
[]
[]
["RFP NO:",null,{"$f":"'COVER SHEET'!$E17","v":0}]
["RFP NAME:",null,{"$f":"'COVER SHEET'!$E19","v":"THE PROVISION OF TRAVEL MANAGEMENT SERVICES FOR A PERIOD OF 36 MONTHS"}]
["BIDDER NAME",null,{"$f":"'COVER SHEET'!$E21","v":"<NAME OF BIDDER TO BE FILLED IN HERE>"}]
[]
["TRANSACTION FEES"]
[{"$nulls":3},"TRADITIONAL BOOKINGS"]
["ITEM","Transaction Type","Estimated Volume","Unit Price\n(excl VAT)","Unit Price\n(incl VAT)","TOTAL Price\n(incl VAT)"]
[1,"Accommodation",2682,null,{"$f":"D14*1.15","v":0},{"$f":"E14*C14","v":0}]
[2,"Air Travel - Domestic & Regional",2844,null,{"$f":"D15*1.15","v":0},{"$f":"E15*C15","v":0}]
[3,"Air Travel - International",1836,null,0,0]
[4,"Car rental ",644,null,0,0]
[5,"Visa services",43,null,0,0]
[6,"Shuttle Services - Domestic",2743,null,0,0]
[7,"Railway /Bus / Ferry",14,null,0,0]
[8,"Airport Parking",36,null,0,0]
[9,"Customised Reports",360,null,0,0]
[10,"COVID-19 related insurance",533,null,0,0]
[11,"Monthly Debtors Account Reconciliation per directorate",173,null,0,0]
[12,"Conferencing & events",122,null,0,0]
[13,"After Hours Services",158,null,0,0]
[14,"Other (Specify)",null,null,0,0]
[15,"Other (Specify)",null,null,0,0]
[16,"Other (Specify)",null,null,0,0]
[17,"Other (Specify)",null,null,0,0]
[18,"Other (Specify)",null,null,0,0]
[]
[null,"Total",{"$f":"SUM(C14:C32)","v":12188},null,null,{"$f":"SUM(F14:F32)","v":0}]
["PRICE THAT WILL BE USED FOR EVALUATION PURPOSES",{"$nulls":3},{"$f":"+F33","v":0}]

{"sheet":"Price Declaration ","index":2,"n_rows":38,"n_cols":5,"rows_kept":38,"merged":[[7,0,7,1],[7,2,7,8],[8,0,8,1],[8,2,8,8],[9,0,9,1],[9,2,9,8],[12,0,12,8],[15,0,15,8],[16,0,16,8],[17,0,17,8],[18,0,18,1],[18,2,18,3],[18,4,18,6],[18,7,18,8],[19,0,19,8],[20,0,20,8],[21,0,21,8],[22,0,22,8],[23,0,23,8],[24,0,24,8],[25,0,25,8],[26,0,26,8],[27,0,27,8],[28,0,28,2],[28,4,28,8],[29,0,29,8],[30,0,30,8],[31,0,31,8],[32,0,32,8],[33,0,33,8],[34,0,34,8],[35,0,35,8],[36,0,36,8],[37,0,37,8],[38,0,38,8]]}
{"$rows_empty":7}
["RFP NO:",null,{"$f":"'COVER SHEET'!$E$17","v":0}]
["RFP NAME:",null,{"$f":"'COVER SHEET'!$E$19","v":"THE PROVISION OF TRAVEL MANAGEMENT SERVICES FOR A PERIOD OF 36 MONTHS"}]
["BIDDER NAME",null,{"$f":"'COVER SHEET'!$E$21","v":"<NAME OF BIDDER TO BE FILLED IN HERE>"}]
[]
[]
["Price Declaration"]
["Dear Sir/Madam,"]
[]
["Having read through and examined the Request For Proposal (RFP) Document, the General Conditions, The Requirement and all other Annexures to the RFP Document, we offer to provide off-site travel management service to the South African National Space Agency at the following total amounts (including VAT)"]
[]
["Template: Transaction Fee (Off-Site)"]
[{"$f":"'TRANSACTION FEE'!E34","v":0},null,"(incl. VAT)"]
["In words:"]
[]
[]
["We undertake to hold this offer open for acceptance for a period of 120 days from the date of submission of offers. We further undertake that upon final acceptance of our offer, we will commence with the provision of service when required to do so by the SANSA"]
[]
["We understand that SANSA are not bound to accept the lowest or any offer and that we must bear all costs which we have incurred in connection with preparing and submitting this bid."]
[]
["We hereby undertake for the period during which this bid remains open for acceptance not to divulge to any persons, other than the persons to which the bid is submitted, any information relating to the submission of this bid or the details therein except where such is necessary for the submission of this bid."]
[]
["Signature",{"$nulls":3},"Date"]
["Print name of signatory: ……………………………………………………………………………. "]
["Designation: ………………………………………………………………………………………….  "]
[]
["FOR AND ON BEHALF OF: COMPANY NAME"]
[]
["Tel No: ………………………………………."]
["Fax No: ………………………………………."]
["Cell No: ………………………………………."]
["Email:…………………………………………."]